{"text_format":"1","workbook":"xlsx","n_sheets":3,"sheets":["TimeSheet","Lists","Summary"],"not_rendered":{"charts":0,"images":2,"macros":1,"external_links":0,"defined_names":1,"comments":0,"pivot_tables":0},"unopened":[],"bounds":{"document_bytes":16777216,"sheet_cells":100000,"rows_first":2000,"rows_last":500,"rows_between":2000,"halvings":0,"cell_chars":16384,"cell_head_chars":4096},"cells_cut":0,"cells_raw":0,"read":"whole","date_system":"1900"}

{"sheet":"TimeSheet","index":0,"n_rows":43,"n_cols":20,"rows_kept":43,"cut":false,"hidden":false,"merged":[[32,17,32,19],[12,17,12,19],[1,11,1,16],[1,17,1,18],[2,11,2,16],[2,17,2,18],[3,11,3,16],[3,17,3,18],[8,17,8,19],[9,17,9,19],[4,11,4,16],[4,17,4,18],[26,17,26,19],[27,17,27,19],[17,17,17,19],[18,17,18,19],[19,17,19,19],[20,17,20,19],[0,1,0,3],[0,5,0,14],[2,1,2,2],[16,17,16,19],[1,1,1,3],[15,17,15,19],[42,1,42,19],[25,1,26,2],[21,17,21,19],[5,1,5,2],[6,1,6,2],[8,1,9,2],[13,17,13,19],[14,17,14,19],[10,17,10,19],[11,17,11,19],[5,11,5,16],[5,17,5,18],[33,17,33,19],[22,17,22,19],[23,17,23,19],[25,17,25,19],[2,21,2,22],[10,21,10,22],[2,3,2,9],[43,1,46,19],[5,3,5,9],[41,1,41,19],[34,17,34,19],[35,17,35,19],[36,17,36,19],[37,17,37,19],[38,17,38,19],[39,17,39,19],[28,17,28,19],[29,17,29,19],[30,17,30,19],[31,17,31,19]]}
[null,null,null,null,null,"NORTHWEST EDUCATIONAL SERVICE \nDISTRICT 189\nTIME SHEET"]
[null,null,null,null,null,null,null,null,null,null,null,"Account Code(s)",null,null,null,null,null,"Total Time\n(Payroll Only)"]
[null,"Employee:"]
[]
[]
[null,"Department:",null,null,null,null,null,null,null,null,null,null,null,null,null,null,null,null,null,{"$f":"SUM(R3:S6)","v":0}]
[null,"MONTH",null,"DAY",null,"IN",null,"OUT",null,"IN",null,"OUT",null,null,"TOTAL HRS",null,null,"WORK PERFORMED/SUBSTITUED FOR"]
[]
[null,null,null,16,null,null,null,null,null,null,null,null,null,null,{"$f":"SUM(H9-F9)+SUM(L9-J9)","v":"00:00:00"}]
[null,null,null,17,null,null,null,null,null,null,null,null,null,null,{"$f":"SUM(H10-F10)+SUM(L10-J10)","v":"00:00:00"}]
[null,null,null,18,null,null,null,null,null,null,null,null,null,null,"00:00:00"]
[null,null,null,19,null,null,null,null,null,null,null,null,null,null,"00:00:00"]
[null,null,null,20,null,null,null,null,null,null,null,null,null,null,"00:00:00"]
[null,null,null,21,null,null,null,null,null,null,null,null,null,null,"00:00:00"]
[null,null,null,22,null,null,null,null,null,null,null,null,null,null,"00:00:00"]
[null,null,null,23,null,null,null,null,null,null,null,null,null,null,"00:00:00"]
[null,null,null,24,null,null,null,null,null,null,null,null,null,null,"00:00:00"]
[null,null,null,25,null,null,null,null,null,null,null,null,null,null,"00:00:00"]
[null,null,null,26,null,null,null,null,null,null,null,null,null,null,"00:00:00"]
[null,null,null,27,null,null,null,null,null,null,null,null,null,null,"00:00:00"]
[null,null,null,28,null,null,null,null,null,null,null,null,null,null,"00:00:00"]
[null,null,null,29,null,null,null,null,null,null,null,null,null,null,"00:00:00"]
[null,null,null,30,null,null,null,null,null,null,null,null,null,null,"00:00:00"]
[null,null,null,31,null,null,null,null,null,null,null,null,null,null,"00:00:00"]
[]
[null,null,null,1,null,null,null,null,null,null,null,null,null,null,{"$f":"SUM(H26-F26)+SUM(L26-J26)","v":"00:00:00"}]
[null,null,null,2,null,null,null,null,null,null,null,null,null,null,"00:00:00"]
[null,null,null,3,null,null,null,null,null,null,null,null,null,null,"00:00:00"]
[null,null,null,4,null,null,null,null,null,null,null,null,null,null,"00:00:00"]
[null,null,null,5,null,null,null,null,null,null,null,null,null,null,"00:00:00"]
[null,null,null,6,null,null,null,null,null,null,null,null,null,null,"00:00:00"]
[null,null,null,7,null,null,null,null,null,null,null,null,null,null,"00:00:00"]
[null,null,null,8,null,null,null,null,null,null,null,null,null,null,"00:00:00"]
[null,null,null,9,null,null,null,null,null,null,null,null,null,null,"00:00:00"]
[null,null,null,10,null,null,null,null,null,null,null,null,null,null,"00:00:00"]
[null,null,null,11,null,null,null,null,null,null,null,null,null,null,"00:00:00"]
[null,null,null,12,null,null,null,null,null,null,null,null,null,null,"00:00:00"]
[null,null,null,13,null,null,null,null,null,null,null,null,null,null,"00:00:00"]
[null,null,null,14,null,null,null,null,null,null,null,null,null,null,"00:00:00"]
[null,null,null,15,null,null,null,null,null,null,null,null,null,null,"00:00:00"]
[null,null,null,null,null,null,null,null,null,null,null,"TOTAL",null,null,{"$f":"SUM(O9:O40)","v":"00:00:00"}]
[null,"I, the undersigned, do hereby certify under penalty of perjury that the labor has been performed a described herein, and the claim is a just, due, and unpaid obligation against Northwest ESD 189, and that I am authorized to aunticate and certify said claim."]
[null,"Signature Block - enter Adobe Sign signature blocks below. Employee, Supervisor, cc: Payroll (payroll@nwesd.org)"]

{"sheet":"Lists","index":1,"n_rows":19,"n_cols":5,"rows_kept":19,"cut":false,"hidden":false,"merged":[]}
[]
[]
[]
[]
[]
[]
[]
[null,null,null,null,"January"]
[null,null,null,null,"February"]
[null,null,null,null,"March"]
[null,null,null,null,"April"]
[null,null,null,null,"May"]
[null,null,null,null,"June"]
[null,null,null,null,"July"]
[null,null,null,null,"August"]
[null,null,null,null,"September"]
[null,null,null,null,"October"]
[null,null,null,null,"November"]
[null,null,null,null,"December"]

{"sheet":"Summary","index":2,"n_rows":0,"n_cols":0,"rows_kept":0,"cut":false,"hidden":false,"merged":[]}